bitfinex/quotes_BTCUSD_20250225
["timestamp","ask_amount","ask_price","bid_price","bid_amount"]
[1740497833104,0.01234403,87060.0,87059.0,0.11374753]
[1740497834394,0.00663046,87060.0,87059.0,0.11535509]
[1740497834596,0.00663046,87060.0,87041.0,0.00160776]
[1740497834795,0.00663046,87060.0,87029.0,0.00856456]
[1740497834796,0.00663046,87060.0,87042.0,0.11374753]
[1740497834997,0.00663046,87060.0,87043.0,0.00160808]
[1740497835225,0.00663046,87060.0,87044.0,0.11374753]
[1740497835399,0.00663046,87060.0,87045.0,0.00160808]
[1740497835601,0.00663046,87060.0,87058.0,0.172298]
[1740497835800,0.00747506,87060.0,87059.0,0.11374753]
[1740497836051,0.00747506,87060.0,87059.0,0.11535526]
[1740497836327,0.00747506,87060.0,87059.0,0.11374753]
[1740497836592,0.00747506,87060.0,87016.0,0.11403676]
[1740497836593,0.00747506,87060.0,87045.0,0.00160792]
[1740497836852,0.00747506,87060.0,87023.0,0.00160793]
[1740497837106,0.00747506,87060.0,87024.0,0.11374753]
[1740497837107,0.11374753,87059.0,87024.0,0.11374753]
[1740497837345,0.11374753,87059.0,87024.0,0.11535565]
[1740497837346,0.0453,87058.0,87024.0,0.11535565]
[1740497837846,0.0453,87058.0,87038.0,0.11374753]
[1740497838088,0.00747506,87060.0,87045.0,0.229766]
[1740497838337,0.00722506,87060.0,87046.0,0.11374753]
[1740497838580,0.00722506,87060.0,87046.0,0.17232]
[1740497838799,0.00722506,87060.0,87016.0,0.25]
[1740497838800,0.172297,87059.0,87024.0,0.00160815]
[1740497839047,0.00722506,87060.0,87059.0,0.172296]
[1740497839523,0.00722506,87060.0,87059.0,0.28604353]
[1740497840280,0.23172662,87134.0,87105.0,0.172205]
[1740497840281,0.0493,87134.0,87105.0,0.172205]
[1740497840514,0.0493,87134.0,87112.0,0.172192]
[1740497840753,0.1729666,87148.0,87112.0,0.17379855]
[1740497840994,0.0008446,87148.0,87112.0,0.28754608]
[1740497841234,0.0008446,87148.0,87112.0,0.28593953]
[1740497841715,0.009132,87129.0,87112.0,0.28593953]
[1740497842192,0.009132,87129.0,87112.0,0.65628418]
[1740497842686,0.009132,87129.0,87112.0,0.28593953]
[1740497842953,0.229565,87122.0,87112.0,0.11374753]
[1740497843209,0.0458,87112.0,87054.0,0.02044]
[1740497843463,0.0458,87112.0,87076.0,0.034517]
[1740497843734,0.009132,87129.0,87098.0,0.229626]
[1740497843969,0.009132,87129.0,87112.0,0.172192]
[1740497844173,0.009132,87129.0,87097.0,0.11374753]
[1740497844393,0.009132,87129.0,87076.0,0.034517]
[1740497844639,0.3,87121.0,87050.0,0.44864465]
[1740497844933,0.3,87121.0,87064.0,0.229716]
[1740497844934,0.3,87105.0,87064.0,0.229716]
[1740497845175,0.0497,87104.0,87065.0,0.00160747]
[1740497845393,0.229551,87127.0,87111.0,0.172193]
[1740497845637,0.009132,87129.0,87112.0,0.17379884]
[1740497845921,0.009132,87129.0,87067.0,0.1]
[1740497846151,0.009132,87129.0,87083.0,0.11374753]
[1740497846388,0.3,87111.0,87083.0,0.11374753]
[1740497846580,0.3,87109.0,87084.0,0.00160751]
[1740497846778,0.3,87107.0,87058.0,0.00160739]
[1740497846896,0.3,87107.0,87059.0,0.11374753]
[1740497846897,0.3,87105.0,87059.0,0.11374753]
[1740497847101,0.0481,87106.0,87105.0,0.172205]
[1740497847315,0.1,87152.0,87105.0,0.172205]
[1740497847316,0.0771,87144.0,87112.0,0.172192]
[1740497847519,0.0471,87136.0,87112.0,0.172192]
[1740497847740,0.0471,87136.0,87112.0,0.17379864]
[1740497847944,0.172163,87127.0,87082.0,0.32048]
[1740497848145,0.0471,87136.0,87083.0,0.00160679]
[1740497848341,0.0471,87136.0,87083.0,0.00160694]
[1740497848605,0.172212,87102.0,87084.0,0.11374753]
[1740497848773,0.3,87126.0,87080.0,0.229671]
[1740497848977,0.3,87117.0,87081.0,0.11535491]
[1740497849177,0.11374753,87125.0,87081.0,0.11535491]
[1740497849615,0.3,87122.0,87084.0,0.11374753]
[1740497849840,0.0471,87136.0,87093.0,0.11374753]
[1740497850043,0.0471,87136.0,87062.0,0.47034465]
[1740497850044,0.0471,87136.0,87100.0,0.11374753]
[1740497850398,0.0471,87136.0,87128.0,0.172159]
[1740497850631,0.0471,87136.0,87135.0,0.172146]
[1740497850859,0.1,87175.0,87129.0,0.172158]
[1740497851086,0.1,87167.0,87114.0,0.034504]
[1740497851295,0.3,87158.0,87114.0,0.11374753]
[1740497851416,0.3,87158.0,87083.0,0.37034465]
[1740497851417,0.172205,87106.0,87092.0,0.172231]
[1740497851641,0.11374753,87144.0,87093.0,0.00660714]
[1740497851850,0.17219,87114.0,87100.0,0.172214]
[1740497852123,0.095,87137.0,87094.0,0.034512]
[1740497852284,0.3,87129.0,87078.0,0.005]
[1740497852655,0.229552,87126.0,87089.0,0.005]
[1740497852873,0.11407413,87136.0,87098.0,0.005]
[1740497853096,0.01441906,87193.0,87103.0,0.005]
[1740497853097,0.172164,87127.0,87103.0,0.005]
[1740497853323,0.3,87138.0,87104.0,0.34496441]
[1740497853582,0.41374753,87135.0,87079.0,0.00852276]
[1740497853789,0.172215,87100.0,87099.0,0.00433865]
[1740497854121,0.28596253,87100.0,87099.0,0.00433865]
[1740497854328,0.172289,87063.0,87062.0,0.00711662]
[1740497854532,0.11407413,87098.0,87062.0,0.12086415]
[1740497854731,0.0458,87100.0,87083.0,0.005]
[1740497854936,0.37034465,87126.0,87084.0,0.11374753]
[1740497855140,0.37034465,87117.0,87066.0,0.005]
[1740497855340,0.095,87115.0,87057.0,0.005]
[1740497855542,0.38286162,87114.0,87060.0,0.005]
[1740497855746,0.01454085,87111.0,87068.0,0.172277]
[1740497855976,0.3,87102.0,87053.0,0.005]
[1740497856185,0.11374753,87101.0,87068.0,0.005]
[1740497856387,0.11374753,87101.0,87056.0,0.005]
[1740497856606,0.17225,87083.0,87061.0,0.229723]
[1740497856763,0.172237,87090.0,87063.0,0.229718]
[1740497856998,0.172224,87096.0,87078.0,0.229678]
[1740497857169,0.3,87100.0,87068.0,0.005]
[1740497857366,0.3,87094.0,87048.0,0.177318]
[1740497857586,0.172281,87067.0,87050.0,0.229753]
[1740497857786,0.172281,87067.0,87049.0,0.11374753]
[1740497857787,0.3,87092.0,87043.0,0.005]
[1740497857990,0.3,87092.0,87030.0,0.37034465]
[1740497857991,0.14896818,87091.0,87049.0,0.005]
[1740497858192,0.229699,87071.0,87049.0,0.11374753]
[1740497858424,0.3,87089.0,87040.0,0.005]
[1740497858603,0.529656,87087.0,87041.0,0.11374753]
[1740497858807,0.03526569,87086.0,87066.0,0.005]
[1740497858980,0.03526569,87086.0,87055.0,0.11374753]
[1740497858981,0.03526569,87101.0,87100.0,0.172215]
[1740497859182,0.0008434,87102.0,87101.0,0.172213]
[1740497859363,0.0008434,87102.0,87076.0,0.005]
[1740497859577,0.0008434,87102.0,87069.0,0.005]
[1740497859827,0.172221,87097.0,87052.0,0.005]
[1740497860039,0.229726,87060.0,87042.0,0.0069042]
[1740497860250,0.3,87084.0,87045.0,0.005]
[1740497860458,0.172263,87076.0,87052.0,0.005]
[1740497860667,0.3,87083.0,87042.0,0.0069042]
[1740497860881,0.0471,87074.0,87042.0,0.0069042]
[1740497861080,0.172321,87047.0,87042.0,0.0069042]
[1740497861284,0.0471,87074.0,87015.0,0.01211662]
[1740497861285,0.229708,87067.0,87015.0,0.01211662]
[1740497861534,0.09189065,87068.0,87015.0,0.01211662]
[1740497861535,0.3,87056.0,87015.0,0.00711662]
[1740497861783,0.172364,87025.0,87015.0,0.00711662]
[1740497862046,0.50763504,87025.0,87015.0,0.00711662]
[1740497862267,0.472382,87016.0,87015.0,4.2e-07]
[1740497862485,0.472427,86993.0,86992.0,0.0145911]
[1740497862711,0.472427,86993.0,86969.0,0.01290733]
[1740497862712,0.172471,86971.0,86969.0,0.01290733]
[1740497862918,0.172472,86971.0,86969.0,0.01290733]
[1740497863116,0.0493,86988.0,86945.0,0.005]
[1740497863325,0.0493,86988.0,86935.0,0.03423989]
[1740497863326,0.3,86986.0,86951.0,0.005]
[1740497863634,0.0493,86988.0,86952.0,0.11374753]
[1740497863635,0.3,86984.0,86952.0,0.11374753]
[1740497863836,0.3,86982.0,86962.0,0.172488]
[1740497864047,0.0493,86988.0,86955.0,0.005]
[1740497864174,0.0498,87021.0,86963.0,0.11874753]
[1740497864371,0.14886208,87020.0,86977.0,0.005]
[1740497864643,0.172396,87009.0,86983.0,0.229929]
[1740497864873,0.172396,87009.0,86965.0,0.09189065]
[1740497864874,0.11374753,87020.0,86984.0,0.11374753]
[1740497865072,0.11374753,87020.0,86962.0,0.234985]
[1740497865073,0.34476,87017.0,86962.0,0.234985]
[1740497865275,0.34476,87017.0,86953.0,0.09189065]
[1740497865276,0.3,87015.0,86963.0,0.00160956]
[1740497865422,0.3,87015.0,86959.0,0.005]
[1740497865423,0.3,87005.0,86959.0,0.005]
[1740497865628,0.172432,86991.0,86974.0,0.172464]
[1740497865854,0.11374753,86990.0,86960.0,0.11374753]
[1740497866029,0.11374753,86989.0,86945.0,0.005]
[1740497866278,0.11374753,86989.0,86932.0,7e-05]
[1740497866279,0.51701293,86988.0,86943.0,0.005]
[1740497866478,0.51701293,86988.0,86944.0,0.11874753]
[1740497866479,0.0457,86983.0,86944.0,0.11874753]
[1740497866681,0.11407413,87000.0,86963.0,0.005]
[1740497867047,0.0457,87004.0,86968.0,0.234969]
[1740497867200,0.0457,87004.0,86935.0,0.3]
[1740497867201,0.02319414,87025.0,86983.0,0.005]
[1740497867412,0.0452,87030.0,86999.0,0.005]
[1740497867413,0.172373,87021.0,86999.0,0.005]
[1740497867618,0.11374753,87029.0,87000.0,0.11374753]
[1740497868166,0.3,87028.0,86985.0,0.005]
[1740497868464,0.229832,87020.0,86976.0,0.02032]
[1740497868752,0.1284034,87029.0,86992.0,0.005]
[1740497869012,0.01432927,87029.0,86998.0,0.005]
[1740497869470,0.11407413,87049.0,87002.0,0.005]
[1740497869719,0.0757,87051.0,87002.0,0.005]
[1740497869720,0.172362,87026.0,87006.0,0.229867]
[1740497869975,0.229801,87032.0,87010.0,0.172393]
[1740497870205,0.09729224,87053.0,87019.0,0.005]
[1740497870456,0.229789,87036.0,87003.0,0.005]
[1740497870687,0.3,87044.0,87009.0,0.005]
[1740497870906,0.11374753,87049.0,87005.0,0.005]
[1740497871132,0.01421453,87044.0,87017.0,0.005]
[1740497871387,0.11374753,87043.0,87007.0,0.005]
[1740497871640,0.01450711,87044.0,87008.0,0.11374753]
[1740497871870,0.00861137,87084.0,87043.0,0.005]
[1740497872071,0.172283,87066.0,87042.0,0.005]
[1740497872289,0.01428337,87065.0,87042.0,0.005]
[1740497872525,0.17233,87042.0,87016.0,0.22984]
[1740497872738,0.3,87064.0,87023.0,0.005]
[1740497872943,0.172326,87044.0,87043.0,0.00421394]
[1740497873355,0.3,87051.0,87033.0,0.00763479]
[1740497873562,0.3,87049.0,87033.0,0.00763479]
[1740497873823,0.01428337,87065.0,87033.0,0.00763479]
[1740497874058,0.11374753,87064.0,87033.0,0.00763479]
[1740497874312,0.172346,87034.0,87033.0,0.00763479]
[1740497874507,0.04457204,87055.0,87033.0,0.00763479]
[1740497874684,0.15831957,87055.0,87028.0,0.229811]
[1740497874915,0.229713,87066.0,87030.0,0.005]
[1740497875144,0.172299,87058.0,87031.0,0.1153559]
[1740497875356,0.172299,87058.0,87031.0,0.11374753]
[1740497875357,0.11374753,87058.0,87031.0,0.11374753]
[1740497875561,0.3,87055.0,87013.0,0.005]
[1740497875765,0.3,87053.0,87013.0,0.11374753]
[1740497875984,0.3,87041.0,87006.0,0.172401]
[1740497876192,0.3,87039.0,86998.0,0.005]
[1740497876403,0.11374753,87039.0,87012.0,0.005]
[1740497876590,0.11374753,87039.0,87014.0,0.229848]
[1740497876794,0.11374753,87038.0,87004.0,0.005]
[1740497876953,0.229789,87036.0,87006.0,0.005]
[1740497877119,0.11374753,87035.0,87007.0,0.11374753]
[1740497877324,0.172363,87026.0,87008.0,0.11874753]
[1740497877531,0.11374753,87034.0,87003.0,0.005]
[1740497877728,0.172353,87031.0,87017.0,0.172378]
[1740497877976,0.172353,87031.0,87003.0,0.11874753]
[1740497877977,0.11374753,87030.0,87008.0,0.172397]
[1740497878149,0.172368,87024.0,87010.0,0.172392]
[1740497878354,0.11407413,87049.0,86993.0,0.005]
[1740497878732,0.172384,87015.0,87001.0,0.17241]
[1740497878956,0.1724,87007.0,86991.0,0.005]
[1740497879159,0.09870668,87040.0,87008.0,5e-05]
[1740497879363,0.00876988,87046.0,87008.0,5e-05]
[1740497879364,0.172395,87009.0,87008.0,5e-05]
[1740497879769,0.172389,87013.0,87008.0,5e-05]
[1740497879973,0.229821,87025.0,87005.0,0.25]
[1740497879974,0.172395,87010.0,87005.0,0.24505]
[1740497880180,0.3,87030.0,87005.0,0.24505]
[1740497880386,0.0476,87050.0,87009.0,0.005]
[1740497880599,0.0146089,87030.0,87005.0,0.24505]
[1740497880800,0.09913586,87029.0,87005.0,0.24505]
[1740497881000,0.172401,87006.0,87005.0,0.24505]
[1740497881547,0.472401,87006.0,87005.0,0.24505]
[1740497881749,0.11407413,87029.0,87005.0,0.24505]
[1740497881954,0.09916886,87028.0,87005.0,0.2451]
[1740497882176,0.11407413,87060.0,87014.0,0.005]
[1740497882378,0.00876281,87046.0,87010.0,0.005]
[1740497882580,0.15981818,87067.0,87028.0,0.005]
[1740497882581,0.05981818,87067.0,87028.0,0.005]
[1740497882780,0.07399103,87067.0,87038.0,0.005]
[1740497883131,0.07399103,87067.0,87051.0,0.005]
[1740497883352,0.07399103,87067.0,87044.0,0.005]
[1740497883353,0.01501665,87067.0,87044.0,0.005]
[1740497883578,0.01501665,87067.0,87045.0,0.11374753]
[1740497883990,0.01501665,87067.0,87025.0,0.229818]
[1740497883991,0.09729224,87058.0,87028.0,0.01466894]
[1740497884193,0.09745253,87057.0,87028.0,0.01466894]
[1740497884398,0.09729224,87058.0,87057.0,0.1773]
[1740497884899,0.09729224,87058.0,87057.0,0.11374753]
[1740497885109,0.09729224,87058.0,87057.0,0.29104753]
[1740497885751,0.09729224,87058.0,87057.0,0.11874753]
[1740497885957,0.09729224,87058.0,87044.0,5e-05]
[1740497886382,0.09729224,87058.0,87057.0,0.1773]
[1740497886585,0.09667224,87058.0,87057.0,5e-05]
[1740497886794,0.26897024,87058.0,87057.0,5e-05]
[1740497886997,0.36546602,87058.0,87057.0,5e-05]
[1740497887199,0.66546602,87058.0,87057.0,5e-05]
[1740497887406,0.66546602,87058.0,87044.0,1e-06]
[1740497887407,0.472324,87045.0,87044.0,1e-06]
[1740497887609,0.472324,87045.0,87005.0,0.24535]
[1740497887610,0.402099,87043.0,87005.0,0.24535]
[1740497887758,0.3,87041.0,87005.0,0.24535]
[1740497887968,0.229844,87016.0,87005.0,0.24535]
[1740497888171,0.03521026,87040.0,87005.0,0.24535]
[1740497888172,0.13482906,87015.0,87005.0,0.24535]
[1740497888353,0.11407413,87037.0,87005.0,0.24535]
[1740497888705,0.25918964,87056.0,87026.0,0.005]
[1740497888844,0.26498282,87055.0,87027.0,0.005]
[1740497889061,0.03524382,87054.0,87030.0,0.005]
[1740497889286,0.03524382,87054.0,87015.0,0.17209065]
[1740497889287,0.09751852,87053.0,87026.0,0.005]
[1740497889489,0.00876932,87070.0,87015.0,0.17209065]
[1740497889490,0.25918964,87101.0,87065.0,0.005]
[1740497889835,0.25,87127.0,87027.0,0.4807426]
[1740497889836,8.6e-07,87081.0,87080.0,0.005]
[1740497889991,0.2464438,87137.0,87101.0,0.177213]
[1740497890211,0.0464438,87137.0,87101.0,0.177213]
[1740497890417,0.00600546,87135.0,87101.0,0.17881994]
[1740497890615,0.0008438,87137.0,87101.0,0.29256747]
[1740497890616,0.229534,87133.0,87101.0,0.29256747]
[1740497890781,0.01409501,87134.0,87101.0,0.29096053]
[1740497890986,0.01409501,87134.0,87101.0,0.30550138]
[1740497891621,0.229577,87117.0,87101.0,0.11374753]
[1740497891822,0.3,87128.0,87085.0,0.005]
[1740497892034,0.3,87128.0,87055.0,0.02008]
[1740497892035,0.09412178,87101.0,87072.0,0.005]
[1740497892299,0.03528357,87100.0,87064.0,0.005]
[1740497892504,0.03528357,87100.0,87077.0,0.005]
[1740497892701,0.0008438,87153.0,87133.0,0.005]
[1740497892905,0.0008438,87153.0,87136.0,0.177144]
[1740497893267,0.0008438,87153.0,87136.0,0.19329105]
[1740497893469,0.0008438,87153.0,87136.0,0.30543238]
[1740497893610,0.0008438,87153.0,87136.0,0.38233238]
[1740497893810,0.0008438,87153.0,87143.0,0.17713]
[1740497894016,0.0008438,87153.0,87152.0,0.177113]
[1740497894217,0.0008438,87153.0,87152.0,0.28586053]
[1740497894418,0.0008438,87153.0,87152.0,0.29086053]
[1740497895048,0.0008438,87153.0,87152.0,0.30540138]
[1740497895472,0.0008438,87153.0,87152.0,0.12111617]
[1740497895832,0.0008438,87153.0,87152.0,0.172113]
[1740497896190,0.0008438,87153.0,87144.0,0.30987541]
[1740497896391,0.0008438,87153.0,87145.0,0.11535379]
[1740497896644,0.0008438,87153.0,87118.0,0.36747607]
[1740497896945,0.229486,87151.0,87119.0,0.11374753]
[1740497897159,0.01853053,87155.0,87119.0,0.11374753]
[1740497897160,2.7188,87292.0,87119.0,0.11535421]
[1740497897427,0.172119,87149.0,87128.0,0.4]
[1740497897640,0.11374753,87171.0,87145.0,0.1]
[1740497897865,0.11374753,87171.0,87146.0,1.66296442]
[1740497898057,0.172085,87166.0,87146.0,1.66296442]
[1740497898259,0.11374753,87165.0,87146.0,1.66296442]
[1740497898480,0.01796929,87201.0,87152.0,0.1]
[1740497898665,0.11374753,87173.0,87153.0,0.79786442]
[1740497898850,0.00870867,87189.0,87154.0,0.79786442]
[1740497898851,0.172107,87155.0,87154.0,0.79786442]
[1740497899050,0.229369,87196.0,87155.0,0.6242]
[1740497899250,0.11385696,87291.0,87193.0,0.1]
[1740497899251,0.00876311,87249.0,87193.0,0.1]
[1740497899450,0.01096765,87248.0,87194.0,1.67750527]
[1740497899612,0.160026,87196.0,87195.0,1.66296442]
[1740497899811,0.160026,87196.0,87195.0,0.79786442]
[1740497900063,0.29138336,87196.0,87195.0,4.2e-07]
[1740497900254,0.33828336,87196.0,87195.0,4.2e-07]
[1740497900616,0.71885489,87196.0,87195.0,0.3235]
[1740497900817,0.172063,87177.0,87176.0,0.5428]
[1740497901018,0.28581053,87177.0,87176.0,0.4207193]
[1740497901292,0.28581053,87177.0,87146.0,0.8651]
[1740497901293,0.11374753,87177.0,87147.0,0.38640127]
[1740497901609,0.11374753,87169.0,87147.0,0.38640127]
[1740497901823,0.172119,87149.0,87147.0,0.38640127]
[1740497902030,0.172108,87155.0,87148.0,0.37640127]
[1740497902232,0.34320853,87161.0,87148.0,0.37640127]
[1740497902233,0.229482,87153.0,87148.0,0.37640127]
[1740497902432,0.172117,87150.0,87148.0,0.37640127]
[1740497902654,0.172094,87162.0,87149.0,0.36747607]
[1740497902859,0.01760983,87196.0,87195.0,0.272028]
[1740497903062,0.00883182,87227.0,87207.0,0.1]
[1740497903264,0.00883182,87227.0,87208.0,0.37640127]
[1740497903465,0.00883182,87227.0,87216.0,0.1]
[1740497903614,0.0018867,87234.0,87218.0,0.1]
[1740497903794,0.171963,87229.0,87222.0,0.1]
[1740497904045,0.171971,87224.0,87223.0,0.37640127]
[1740497904200,0.28571853,87224.0,87223.0,0.37640127]
[1740497904830,0.02013763,87234.0,87223.0,0.37640127]
[1740497904999,0.171971,87224.0,87223.0,0.69990127]
[1740497905204,0.28571853,87224.0,87223.0,0.69990127]
[1740497905705,0.58571853,87224.0,87223.0,0.69990127]
[1740497905855,0.58571853,87224.0,87223.0,0.3235]
[1740497906457,0.58566069,87224.0,87223.0,0.69990127]
[1740497906667,0.02013763,87234.0,87223.0,0.69990127]
[1740497906862,0.229273,87232.0,87223.0,0.69990127]
[1740497907044,0.171971,87224.0,87223.0,0.69990127]
[1740497907242,0.28656243,87224.0,87223.0,0.69990127]
[1740497907441,0.0008439,87224.0,87223.0,0.69990127]
[1740497907691,0.28656243,87224.0,87223.0,0.69990127]
[1740497908097,0.0008439,87224.0,87223.0,0.69990127]
[1740497908304,0.28656243,87224.0,87223.0,0.69990127]
[1740497908896,0.0008439,87224.0,87223.0,0.69990127]
[1740497909033,0.28656243,87224.0,87223.0,0.69990127]
[1740497909872,0.172,87209.0,87208.0,0.37441427]
[1740497910075,0.28574753,87209.0,87208.0,0.69791427]
[1740497910705,0.28574753,87209.0,87208.0,0.3235]
[1740497911674,0.58574753,87209.0,87208.0,0.14997241]
[1740497912423,0.00969562,87224.0,87208.0,0.47347241]
[1740497912625,0.229323,87213.0,87208.0,0.47347241]
[1740497912826,0.11374753,87223.0,87209.0,0.69791427]
[1740497913033,0.171988,87215.0,87214.0,0.1]
[1740497913240,0.171996,87211.0,87210.0,0.69791427]
[1740497913663,0.11374753,87215.0,87210.0,0.69791427]
[1740497913865,0.3,87232.0,87210.0,0.69791427]
[1740497914088,0.229273,87233.0,87214.0,0.1]
[1740497914293,0.229257,87238.0,87215.0,0.69791427]
[1740497914492,0.229276,87232.0,87216.0,0.69791427]
[1740497914861,0.171982,87218.0,87217.0,0.69791427]
[1740497915186,0.00848212,87240.0,87217.0,0.69791427]
[1740497915412,0.00848212,87240.0,87226.0,0.1]
[1740497915413,0.11374753,87240.0,87226.0,0.1]
[1740497915610,0.11374753,87240.0,87227.0,0.69791427]
[1740497915815,0.11374753,87240.0,87226.0,0.1]
[1740497915816,0.11374753,87240.0,87228.0,0.69791427]
[1740497916040,0.11374753,87239.0,87229.0,0.69791427]
[1740497916251,1.23715887,87304.0,87234.0,0.1]
[1740497916252,0.0465,87288.0,87234.0,0.1]
[1740497916456,0.00866005,87265.0,87235.0,0.89791427]
[1740497916641,0.00866005,87265.0,87236.0,0.69791427]
[1740497916642,0.171945,87237.0,87236.0,0.69791427]
[1740497916846,0.17194,87240.0,87236.0,0.69791427]
[1740497917047,0.171929,87246.0,87236.0,0.69791427]
[1740497917357,0.11374753,87245.0,87237.0,0.37441427]
[1740497917558,0.11374753,87264.0,87238.0,0.79791427]
[1740497917795,0.171935,87242.0,87239.0,0.69791427]
[1740497917995,0.171937,87241.0,87240.0,0.69791427]
[1740497918134,0.11374753,87264.0,87240.0,0.69791427]
[1740497918479,0.171935,87242.0,87241.0,0.69791427]
[1740497918701,0.28568253,87242.0,87241.0,0.69791427]
[1740497919456,0.11374753,87242.0,87241.0,0.69791427]
[1740497919657,0.28568253,87242.0,87241.0,0.69791427]
[1740497920026,0.229189,87264.0,87241.0,0.69791427]
[1740497920143,0.229189,87264.0,87231.0,0.1]
[1740497920144,0.00842252,87272.0,87255.0,0.1]
[1740497920345,0.00842252,87272.0,87252.0,0.1]
[1740497920346,0.11374753,87271.0,87257.0,0.1]
[1740497920659,0.01849175,87298.0,87282.0,0.1]
[1740497920860,0.171852,87284.0,87283.0,0.69791427]
[1740497921201,0.17175471,87284.0,87283.0,0.69791427]
[1740497921427,0.171851,87285.0,87283.0,0.69791427]
[1740497921709,0.00856072,87337.0,87297.0,0.1]
[1740497921912,0.01797039,87383.0,87311.0,0.1767]
[1740497922107,0.0466,87388.0,87311.0,1.1375618]
[1740497922108,0.0352751,87386.0,87311.0,1.1375618]
[1740497922322,0.228987,87341.0,87311.0,1.1375618]
[1740497922525,0.01809214,87322.0,87311.0,1.1375618]
[1740497922919,0.01809214,87322.0,87311.0,2.0026618]
[1740497923103,0.01809214,87322.0,87321.0,0.1]
[1740497923302,0.00870899,87364.0,87323.0,0.2]
[1740497923303,0.228951,87355.0,87323.0,0.2]
[1740497923503,0.228949,87356.0,87323.0,0.2]
[1740497923848,0.00870899,87364.0,87323.0,0.37441427]
[1740497924050,0.29906443,87324.0,87323.0,0.37441427]
[1740497924254,0.3,87323.0,87292.0,0.0767]
[1740497924476,0.3,87321.0,87293.0,0.8663]
[1740497924628,0.03120225,87324.0,87293.0,0.8663]
[1740497924629,0.171833,87294.0,87293.0,0.8663]
[1740497924959,0.11374753,87312.0,87293.0,0.8663]
[1740497925169,0.171833,87295.0,87294.0,0.5428]
[1740497925361,0.3,87317.0,87277.0,0.1]
[1740497925575,0.24669917,87295.0,87294.0,0.5428]
[1740497925789,0.171862,87279.0,87278.0,0.5428]
[1740497925991,0.07486817,87295.0,87278.0,0.5428]
[1740497926195,0.171862,87279.0,87278.0,0.54055127]
[1740497926398,0.07591817,87279.0,87261.0,0.54055127]
[1740497926600,0.171896,87262.0,87261.0,0.54055127]
[1740497927096,0.171917,87251.0,87233.0,0.1826]
[1740497927246,0.24967363,87251.0,87250.0,0.54060127]
[1740497927446,0.01814681,87262.0,87250.0,0.54060127]
[1740497927661,0.0576689,87330.0,87254.0,0.1]
[1740497928006,0.0576689,87330.0,87250.0,0.54060127]
[1740497928007,0.07581973,87286.0,87251.0,0.54055127]
[1740497928246,0.00860631,87284.0,87260.0,0.1]
[1740497928523,0.229177,87269.0,87252.0,0.54055127]
[1740497928694,0.07685991,87268.0,87252.0,0.64055127]
[1740497928899,0.30859941,87285.0,87261.0,0.1]
[1740497929098,0.3,87282.0,87261.0,0.1]
[1740497929305,0.07613768,87281.0,87261.0,0.1]
[1740497929654,0.171894,87264.0,87261.0,0.1]
[1740497929859,0.171898,87261.0,87260.0,0.1]
[1740497930059,0.07613768,87281.0,87260.0,0.1]
[1740497930480,0.171896,87262.0,87261.0,0.54055127]
[1740497930861,0.171904,87258.0,87257.0,0.54055127]
[1740497931159,0.07679423,87262.0,87257.0,0.54055127]
[1740497931359,0.171904,87258.0,87257.0,0.54055127]
[1740497932023,0.24896091,87258.0,87257.0,0.54055127]
[1740497932405,0.229148,87280.0,87257.0,0.86405127]
[1740497932695,0.171904,87258.0,87257.0,0.3235]
[1740497932839,0.171904,87258.0,87257.0,0.4235]
[1740497933038,0.171904,87258.0,87257.0,0.3235]
[1740497933448,0.24896091,87258.0,87257.0,0.3235]
[1740497933649,0.24896091,87258.0,87234.0,0.3235]
[1740497933650,0.229207,87257.0,87234.0,0.3235]
[1740497933854,0.07784506,87256.0,87234.0,0.3235]
[1740497934118,0.229218,87253.0,87234.0,0.3235]
[1740497934367,0.229228,87250.0,87236.0,0.1]
[1740497934495,0.229249,87242.0,87234.0,0.3235]
[1740497934703,0.07800927,87249.0,87234.0,0.3235]
[1740497935042,0.171949,87235.0,87234.0,0.3235]
[1740497935260,0.5505167,87235.0,87234.0,0.3235]
[1740497935468,0.171982,87218.0,87217.0,0.3235]
[1740497935630,0.172,87209.0,87208.0,0.15165641]
[1740497935832,0.55227652,87209.0,87208.0,0.05528224]
[1740497936029,0.58756721,87209.0,87208.0,0.04443767]
[1740497936810,0.11556721,87209.0,87171.0,0.3235]
[1740497937028,0.172073,87172.0,87171.0,0.3235]
[1740497937237,0.25478307,87172.0,87171.0,0.3235]
[1740497937449,0.08271007,87172.0,87155.0,0.3235]
[1740497937621,0.11853744,87171.0,87155.0,0.3235]
[1740497937938,0.0832365,87171.0,87155.0,0.3235]
[1740497938156,0.171853,87157.0,87155.0,0.3235]
[1740497938328,0.25558314,87157.0,87155.0,0.3235]
[1740497938558,0.08373014,87156.0,87155.0,0.3235]
[1740497938697,0.172115,87151.0,87146.0,0.0016822]
[1740497938899,0.33054485,87151.0,87146.0,0.0016822]
[1740497939100,0.25620718,87151.0,87146.0,0.0016822]
[1740497939938,0.172174,87121.0,87107.0,0.1]
[1740497940116,0.2582418,87121.0,87096.0,0.1]
[1740497940294,0.172213,87101.0,87085.0,0.0833]
[1740497940496,0.26831987,87101.0,87085.0,0.1]
[1740497940698,0.1,87153.0,87106.0,0.172203]
[1740497940891,0.1,87153.0,87087.0,0.36718091]
[1740497940892,0.08547496,87133.0,87115.0,0.1]
[1740497941090,0.17212,87149.0,87130.0,0.1]
[1740497941301,0.08481642,87148.0,87122.0,0.1]
[1740497941720,0.1,87187.0,87137.0,0.1]
[1740497941957,0.08359849,87169.0,87141.0,0.1]
[1740497942168,0.229396,87186.0,87148.0,0.1]
[1740497942364,0.08300617,87185.0,87158.0,0.1]
[1740497942565,0.0465,87221.0,87150.0,0.1]
[1740497942566,0.00885341,87180.0,87150.0,0.1]
[1740497942781,0.0831378,87172.0,87149.0,0.6196]
[1740497943126,0.08343394,87169.0,87145.0,0.1]
[1740497943323,0.08366432,87169.0,87156.0,0.1]